Cogmind - Beta 14 @@@ ROGUE MODE // 2024.08.20 @ 00:14:34 Player: THN-L0C Result: Destroyed by H-71 Marshal with Heavy Mass Driver Performance ------------- Evolutions (7) 3500 Regions Visited (17) 3400 Robots Destroyed (197) 985 Value Destroyed (6635) 6635 Prototype IDs (48) 960 Alien Tech Used (2) 400 Bonus (3784) 3784 TOTAL SCORE: 19664 Bonus ------- Triggered High Security 500 High Alert Combat Kills 1937 Follower Combat Kills 958 Aligned with FarCom 300 Met Zhirov 300 Friendly Fire -211 Cogmind --------- Core Integrity 0/1300 Matter 249/300 Energy 100/100 System Corruption 27% Temperature Cool (0) Movement Core (50) Location -3/Research Parts ------- > --- POWER (2) -------- (None) > --- PROPULSION (6) --- (None) > --- UTILITY (10) ----- Improved Melee Analysis Suite Hacking Suite Advanced Hacking Suite > --- WEAPON (3) ------- (None) > --- INVENTORY (5) ---- Neutrino Core Energy Well (350) Improved Matter Compressor (177) Gamma Bomb Array Force Lance Peak State ------------ > --- POWER ------------ Antimatter-Neutrino Reactor > --- PROPULSION ------- Flexi-carbon Leg Hovering Gravjet-Antigrav Exoskeleton Cooled Gravmag System Cooled Gravmag System Improved Antigrav System > --- UTILITY ---------- Armored Scrap Engine Energy Well Advanced Terrain Scanner Seismic Detector Improved Transmission Jammer Experimental Power Shielding Graphene Brace Improved Remote Force Field Advanced Hacking Suite > --- WEAPON ----------- Hpw. Energy Quantum Construct/G Force Lance Plasma Lance > --- INVENTORY -------- Light Antimatter Reactor Centrium Wheel Matter Compressor Makeshift Salvage Targeting Computer Transdimensional Reconstructor [Rating: 134] Favorites ----------- Power Constructs Engine Ion Engine Power Core Nuclear Core Reactor Constructs Propulsion Light Treads Treads Light Treads Leg Flexi-carbon Leg Wheel Compact Wheel Hover Unit Constructs Flight Unit Improved Cesium-ion Thruster Utility Large Storage Unit Device Armored Scrap Engine Storage Large Storage Unit Processor Improved Launcher Guidance Computer Hackware Makeshift Hacking Suite Protection Improved Propulsion Shielding Weapon Constructs Energy Gun Constructs Energy Cannon Ion Cannon Ballistic Gun Shotgun Launcher Grenade Launcher Special Weapon Improved Remote Datajack Impact Weapon Hammer Slashing Weapon Axe Piercing Weapon Force Lance Build | -11 -10 -10 -10 -9 -8 -8 -8 -6 -6 -6 -5 -4 -4 -4 -4 -3 -3 ------- Run | Yrd Mat Min Exi Min Mat Sto Rec Fac Was Fac Fac Fac Upp Upp Zhi Pro Res Slots Evolved 14 | . . . . . 4 . . 4 . . 2 2 . . . . 2 Power 1 | . . . . . . . . 1 . . . . . . . . . Propulsion 4 | . . . . . 2 . . 1 . . 1 . . . . . . Utility 8 | . . . . . 2 . . 1 . . 1 2 . . . . 2 Weapon 1 | . . . . . . . . 1 . . . . . . . . . Parts Attached 286 | 8 4 8 3 16 27 16 24 16 6 59 5 10 11 13 10 19 31 Power 22 | 1 . 1 . 1 3 1 . 5 . 4 . 1 2 . . . 3 Engine 12 | 1 . . . 1 2 . . 3 . 2 . 1 2 . . . . Core 8 | . . 1 . . 1 1 . 2 . 2 . . . . . . 1 Reactor 2 | . . . . . . . . . . . . . . . . . 2 Propulsion 82 | 3 1 2 . . 5 4 9 4 4 12 3 3 1 9 4 3 15 Treads 13 | 2 1 1 . . . 2 . 1 2 2 . . . 1 . 1 . Leg 8 | 1 . . . . . . . . . 6 . . . . . . 1 Wheel 14 | . . 1 . . 5 1 4 2 . . . . . . . . 1 Hover 24 | . . . . . . . . . . . 2 2 . 4 4 2 10 Flight 23 | . . . . . . 1 5 1 2 4 1 1 1 4 . . 3 Utility 107 | 2 1 1 3 7 7 3 8 5 2 24 2 5 2 4 6 16 9 Device 70 | 1 . 1 2 4 5 2 5 4 1 17 1 3 1 2 4 13 4 Storage 8 | 1 1 . . . . . . . . 3 . . . . . 2 1 Processor 6 | . . . . . . . . 1 . 1 . 1 1 . . . 2 Hackware 8 | . . . . . . . 1 . . . 1 1 . 2 1 . 2 Protection 15 | . . . 1 3 2 1 2 . 1 3 . . . . 1 1 . Artifact . | . . . . . . . . . . . . . . . . . . Weapon 75 | 2 2 4 . 8 12 8 7 2 . 19 . 1 6 . . . 4 Energy Gun 2 | 2 . . . . . . . . . . . . . . . . . Energy Cannon 4 | . . . . . 1 3 . . . . . . . . . . . Ballistic Gun 20 | . 2 1 . 4 5 2 4 1 . . . . 1 . . . . Ballistic Cannon . | . . . . . . . . . . . . . . . . . . Launcher 14 | . . 2 . 1 2 . . . . 8 . . 1 . . . . Special Weapon 2 | . . . . . . . . . . 2 . . . . . . . Impact Weapon 5 | . . 1 . 3 1 . . . . . . . . . . . . Slashing Weapon 4 | . . . . . 2 . . 1 . 1 . . . . . . . Piercing Weapon 24 | . . . . . 1 3 3 . . 8 . 1 4 . . . 4 Special Melee Weapon . | . . . . . . . . . . . . . . . . . . Unidentified Prototypes 10 | . . 1 . . . 1 1 . . 2 . 1 . . 3 . 1 Corrupted Parts 1 | . . . . . . . . . . 1 . . . . . . . System Corruption 1 | . . . . . . . . . . 1 . . . . . . . Parts Lost 80 | . . 1 . 3 8 . . . . 24 1 . 3 4 . 7 29 Power 12 | . . . . 1 . . . . . 6 . . 1 . . . 4 Propulsion 35 | . . 1 . 1 4 . . . . 11 . . 1 2 . 3 12 Utility 21 | . . . . . 2 . . . . 3 1 . . 2 . 4 9 Weapon 12 | . . . . 1 2 . . . . 4 . . 1 . . . 4 Highest Loss Streak 13 | . . 1 . 1 2 . . . . 13 1 . 3 2 . 2 13 To Critical Strikes . | . . . . . . . . . . . . . . . . . . Average Slot Usage (%) 85 | . 97 99 100 94 66 85 97 76 80 73 56 61 83 86 87 86 54 Engine 3 | . 14 . . 4 7 . 1 6 6 5 . . 4 5 5 5 1 Core 4 | . . 13 14 4 1 9 7 2 6 5 . . . . . . . Treads 9 | . 27 24 28 27 2 3 16 4 5 6 . . . 2 5 2 1 Wheel 6 | . . 3 . . 14 18 16 20 20 6 . . . . . . . Hover 3 | . . . . . . . . . . . 4 4 1 . 12 27 9 Flight 5 | . . . . . . . 3 . . 2 23 24 29 24 13 . . Device 14 | . 14 14 14 12 2 9 8 19 13 12 5 11 19 20 16 21 20 Storage 6 | . 14 14 14 14 9 9 9 6 6 6 4 . . . . 2 2 Processor 1 | . . . . . . . . . 4 . . . 7 8 5 . 2 Hackware 3 | . . . . . . . 5 . . . 2 1 5 6 10 7 3 Protection 4 | . . . . 1 11 17 10 . 1 5 5 4 . . 1 3 1 Energy Cannon 2 | . . . . . 1 3 7 3 6 2 . . . 3 . . . Ballistic Gun 6 | . 21 16 14 21 11 8 3 2 . . . . 3 1 5 5 1 Launcher 1 | . . 10 14 5 . . . . . 1 . . . . . . . Piercing Weapon 5 | . . . . . . 6 7 6 6 3 5 6 9 10 10 10 4 Peak Build Rating 134 | 7 10 19 20 21 29 32 60 69 68 93 75 115 112 118 126 129 134 Average Rating 61 | 5 9 17 17 18 17 28 35 62 64 79 64 81 106 111 116 120 85 On Entrance 54 | . 7 10 18 14 11 27 27 56 60 68 62 62 99 112 108 126 107 Naked Turns . | . . . . . . . . . . . . . . . . . . Heaviest Build 75 | 14 32 45 45 45 47 51 46 64 51 75 30 29 37 58 51 67 71 Greatest Support 133 | 40 40 40 40 40 32 40 40 53 51 133 24 31 50 50 58 69 61 Greatest Overweight (x) 15 | . . 2 1 2 15 2 4 1 . 6 6 2 1 3 8 1 5 Average Overweight (x) . | . . 1 . . 1 1 . . . . . . . . . . . Largest Inventory Capacity 15 | 8 15 15 15 15 15 15 15 15 15 15 5 5 5 5 5 5 5 Average Capacity 11 | 7 9 15 15 15 15 15 15 15 15 14 5 5 5 5 5 5 5 Most Carried 15 | 1 10 10 14 14 15 15 15 15 15 15 5 5 5 5 5 5 5 Average Carried 10 | . 6 9 13 13 13 14 14 14 14 13 4 4 4 4 4 4 4 Final Capacity 15 | 8 15 15 15 15 15 15 15 15 15 5 5 5 5 5 5 5 5 Final Carried 15 | 1 10 10 14 13 15 15 15 14 15 4 5 5 5 5 5 5 5 Scrap Engine Consumption 181 | . . . . . . . 30 10 24 35 6 19 7 19 8 16 7 Constructs Created 17 | . . . . . . . 3 . . 4 1 1 2 2 . . 4 Constructs Modified 40 | . . . . . . . 7 6 . 10 1 . 2 12 . . 2 Class Distribution -------------------- 42% | Mutant 22% | Scavenger-Mutant 6% | Hacker-Mutant 5% | Construct 5% | Derelict-Gladiator 4% | Assassin 3% | Derelict-Sprinter 3% | Sprinter 3% | Derelict-Mutant Dominant Class ---------------- Mutant | -10/Materials Mutant | -10/Mines Mutant | -10/Exiles Mutant | -9/Mines Mutant | -8/Materials Assassin | -8/Storage Scavenger-Mutant | -8/Recycling Mutant | -6/Factory Scavenger-Mutant | -6/Waste Construct | -6/Factory Mutant | -5/Factory Mutant | -4/Factory Derelict-Sprinter | -4/Upper Caves Derelict-Gladiator | -4/Upper Caves Hacker-Mutant | -4/Zhirov Mutant | -3/Proximity Caves Mutant | -3/Research Resources | -11 -10 -10 -10 -9 -8 -8 -8 -6 -6 -6 -5 -4 -4 -4 -4 -3 -3 ----------- Run | Yrd Mat Min Exi Min Mat Sto Rec Fac Was Fac Fac Fac Upp Upp Zhi Pro Res Matter Collected 5618 | 233 411 255 . 267 475 311 359 247 171 1466 35 . 415 161 160 271 381 Remotely 20 | . . . . . . . . . . . . . . 20 . . . Salvage Created 9260 | 41 354 139 . 213 582 316 2233 252 . 2710 . . 161 673 447 516 623 Parts 437 | 4 29 21 . 15 36 21 75 9 . 129 . . 3 21 5 27 42 Haulers Intercepted . | . . . . . . . . . . . . . . . . . . Recyclers Shooed 12 | . . . . . 2 . 9 . . 1 . . . . . . . Parts Field Recycled . | . . . . . . . . . . . . . . . . . . Retrieved Matter . | . . . . . . . . . . . . . . . . . . Parts Self-Destructed 35 | . . . . . . . . . . . . . 4 12 1 18 . Prevented 4 | . . . . . . . . . . . . . . . . 4 . Kills | -11 -10 -10 -10 -9 -8 -8 -8 -6 -6 -6 -5 -4 -4 -4 -4 -3 -3 ------- Run | Yrd Mat Min Exi Min Mat Sto Rec Fac Was Fac Fac Fac Upp Upp Zhi Pro Res Combat Hostiles Destroyed 144 | . 15 11 . 12 12 6 . 5 . 50 . . 7 7 . 10 9 Melee 36 | . . . . . . 2 . . . 6 . . 5 5 . 9 9 Guns 42 | . 15 3 . 9 8 3 . 4 . . . . . . . . . Cannons 16 | . . . . . . 1 . 1 . 13 . . . 1 . . . AOE 49 | . . 8 . 3 4 . . . . 31 . . 2 1 . . . Classes Destroyed 19 | 1 4 1 . 1 4 . . . . 7 . . . . . 1 . Worker 7 | . . 1 . . 1 2 . . . 2 . . . . . . 1 Builder 12 | . . . . . 2 . 3 . . 7 . . . . . . . Tunneler 4 | 2 . . . . . . . . . 2 . . . . . . . Recycler 29 | . . . . . 2 . 24 . . 3 . . . . . . . Minesweeper 1 | . . . . . . . . . . . . . . . . 1 . Mechanic 3 | . . . . . . . . . . 3 . . . . . . . Operator 2 | . 1 . . . . . . . . 1 . . . . . . . Watcher 2 | . 1 . . . . . . . . 1 . . . . . . . Swarmer 47 | . 9 9 . 4 . . 1 . . 10 . . 4 2 . 8 . Saboteur 1 | . . . . . . . . . . 1 . . . . . . . Grunt 61 | . 6 2 . 4 8 3 . 4 . 24 . . 3 2 . 1 4 Brawler 4 | . . . . . . . . . . 4 . . . . . . . Duelist 6 | . . . . . . . . . . 6 . . . . . . . Protector 1 | . . . . . . . . . . 1 . . . . . . . Sentry 9 | . . . . . 2 3 . 1 . 1 . . . 1 . 1 . Specialist 2 | . . . . . 2 . . . . . . . . . . . . Hunter 2 | . . . . . . . . . . 2 . . . . . . . Programmer 8 | . . . . . . . . . . 1 . . . 2 . . 5 Decomposer 8 | . . . . . . . . . . . . . 1 5 . 2 . Packrat 2 | . . . . . . . . . . . . . . 2 . . . Assembled 4 | . . . . 4 . . . . . . . . . . . . . Best Kill Streak 25 | 1 10 4 . 4 7 2 5 3 . 25 . . 4 2 . 2 2 Combat Bots Only 20 | . 10 3 . 4 5 1 . 3 . 20 . . 4 2 . 2 2 Max Kills in Single Turn 6 | 1 2 3 . 2 4 1 1 1 . 6 . . 1 1 . 1 1 Gunslinging 1 | . 1 . . . . . . . . . . . . . . . . Exploded 4 | . . 3 . 1 2 . . . . 4 . . 1 1 . . . Melee 1 | . . . . . . 1 . . . 1 . . 1 1 . 1 1 Uniques/NPCs Destroyed 1 | . . 1 . . . . . . . . . . . . . . . YI-UF0 (-10/Mines) Combat | -11 -10 -10 -10 -9 -8 -8 -8 -6 -6 -6 -5 -4 -4 -4 -4 -3 -3 -------- Run | Yrd Mat Min Exi Min Mat Sto Rec Fac Was Fac Fac Fac Upp Upp Zhi Pro Res Hostile Shots Fired 1215 | . 42 16 . 36 87 40 6 37 . 396 11 8 41 61 . 99 335 Missed 447 | . 12 3 . 7 25 12 . 11 . 157 4 6 23 19 . 26 142 Damage Taken 13976 | . 300 164 . 361 1016 319 214 227 36 4540 149 40 385 854 . 1435 3936 Core 2649 | . 21 34 . 58 172 105 . 27 . 656 . . 60 82 . 163 1271 Absorbed by Shields 1041 | . . . . . . 100 . 135 . 321 . . . . . 216 269 Redirected to Shielding 315 | . . . . . 30 12 53 . . 6 60 . . . . 107 47 Regen/Repaired (Parts) 1484 | . . . . . . . 100 25 249 157 100 66 163 314 . 100 210 Core Remaining (%) 65 | 100 . . . 54 . . 49 . . 19 100 . . . . 73 . Volleys Fired 254 | 4 23 14 . 23 34 13 3 23 . 57 . . 14 20 . 24 2 Largest 2 | 2 2 2 . 2 2 2 1 2 . 2 . . 1 1 . 1 1 Hottest 157 | 90 46 53 . 53 83 85 37 62 . 157 . . 43 70 . 60 60 Shots Fired 348 | 8 46 21 . 42 54 22 4 32 . 59 . . 14 20 . 24 2 Gun 215 | 8 46 15 . 39 46 10 3 22 . . . . . . . 24 2 Cannon 87 | . . . . . 3 12 1 10 . 41 . . . 20 . . . Launcher 44 | . . 6 . 3 5 . . . . 16 . . 14 . . . . Special 2 | . . . . . . . . . . 2 . . . . . . . Kinetic 271 | . 46 15 . 39 46 10 3 25 . 41 . . . 20 . 24 2 Thermal 31 | 8 . . . . 3 12 1 7 . . . . . . . . . Explosive 44 | . . 6 . 3 5 . . . . 16 . . 14 . . . . Electromagnetic . | . . . . . . . . . . . . . . . . . . Robot Hit Streak 15 | 3 15 10 . 9 6 6 3 15 . 9 . . 3 2 . 3 . Robot Miss Streak 9 | 2 6 3 . 5 7 1 2 3 . 9 . . 1 3 . 4 . Penetration Max . | . . . . . . . . . . . . . . . . . . Secondary Targets 4 | . 2 1 . 1 . . . . . . . . . . . . . Max Gunslinging Chain 1 | . 1 1 . 1 . . . . . . . . . . . . . Shots Hit Robots 361 | 4 31 10 . 24 33 21 59 23 . 53 . . 9 31 8 30 25 Core Hits 375 | 3 23 16 . 20 35 12 24 16 . 154 . . 22 15 6 15 14 Critical Kills . | . . . . . . . . . . . . . . . . . . Critical Parts Destroyed 2 | . 1 . . . . 1 . . . . . . . . . . . Critical Strikes 29 | . 1 . . . . 1 4 . . 7 . . 3 1 1 7 4 Destroy 2 | . 1 . . . . 1 . . . . . . . . . . . Impale 27 | . . . . . . . 4 . . 7 . . 3 1 1 7 4 Melee Attacks 631 | . . 2 . 8 13 31 63 10 . 59 7 5 187 105 8 86 47 Impact 11 | . . 2 . 8 1 . . . . . . . . . . . . Slashing 12 | . . . . . 11 . . 1 . . . . . . . . . Piercing 608 | . . . . . 1 31 63 9 . 59 7 5 187 105 8 86 47 Sneak Attacks 60 | . . . . . . 2 42 . . 2 . . 2 7 . 4 1 Combat Hostiles 2 | . . . . . . . 1 . . . . . 1 . . . . Follow-up Attacks 19 | . . . . . . . . . . . . . . 4 2 8 5 Damage Inflicted 22348 | 47 503 635 . 571 1367 536 2953 773 . 8570 . . 1390 1908 572 1415 1108 Guns 2239 | 47 503 156 . 370 508 164 51 411 . . . . . . . 29 . Cannons 2583 | . . . . . 24 160 . 362 . 1901 . . . 136 . . . Explosions 8460 | . . 479 . 201 835 . . . . 5785 . . 946 214 . . . Melee 9032 | . . . . . . 212 2902 . . 884 . . 444 1558 572 1357 1103 Ramming 34 | . . . . . . . . . . . . . . . . 29 5 Kinetic 4518 | . 503 156 . 370 508 164 51 700 . 1901 . . . 136 . 29 . Thermal 2387 | 47 . . . . 615 160 . 73 . 1278 . . . 214 . . . Explosive 5730 | . . 479 . 201 244 . . . . 3860 . . 946 . . . . Electromagnetic 647 | . . . . . . . . . . 647 . . . . . . . Impact . | . . . . . . . . . . . . . . . . . . Slashing . | . . . . . . . . . . . . . . . . . . Piercing 9032 | . . . . . . 212 2902 . . 884 . . 444 1558 572 1357 1103 Highest Corruption 27 | . . . . 1 1 1 1 1 1 5 . . . 1 1 1 27 Average Corruption 1 | . . . . 1 1 1 1 1 1 1 . . . 1 1 1 13 Corruption Purged . | . . . . . . . . . . . . . . . . . . Corruption Blocked . | . . . . . . . . . . . . . . . . . . Effects 153 | . . . . 5 5 5 30 5 3 26 . . . 18 2 22 32 Message Errors 38 | . . . . . 2 1 10 1 . 8 . . . 4 1 6 5 Matter Fused 43 | . . . . 2 1 1 8 3 1 8 . . . 6 . 6 7 Heat Flow Errors 18 | . . . . 1 . 2 4 1 . 1 . . . 2 . 3 4 Energy Discharges 17 | . . . . 1 . . 4 . . 1 . . . 2 . 2 7 Parts Rejected 2 | . . . . . 1 . . . . . . . . . . 1 . Parts Fused 1 | . . . . . . . . . . . . . . . . 1 . Data Loss (minor) 18 | . . . . 1 1 1 2 . 2 4 . . . 2 . 2 3 Data Loss (major) 9 | . . . . . . . . . . 3 . . . 2 1 . 3 Misfires 2 | . . . . . . . 1 . . 1 . . . . . . . Alerts 2 | . . . . . . . 1 . . . . . . . . 1 . Misdirections 3 | . . . . . . . . . . . . . . . . . 3 Overload Shots . | . . . . . . . . . . . . . . . . . . Overflow Damage 2645 | . . 9 . . 41 17 715 90 . 752 . . 211 415 117 190 88 Projectiles 493 | . . . . . . 17 . 90 . 386 . . . . . . . Explosions 302 | . . 9 . . 41 . . . . 218 . . 34 . . . . Melee 1850 | . . . . . . . 715 . . 148 . . 177 415 117 190 88 Knockbacks 14 | . . . . . . . . 5 . 7 . . . 2 . . . Impact . | . . . . . . . . . . . . . . . . . . Kinetic 14 | . . . . . . . . 5 . 7 . . . 2 . . . Secondary . | . . . . . . . . . . . . . . . . . . Self-Inflicted Damage 270 | . . . . . 10 . . . . 169 . . 75 . . 14 2 Shots 11 | . . . . . 1 . . . . 8 . . 2 . . . . Rammed 2 | . . . . . . . . . . . . . . . . 1 1 Targets Rammed 2 | . . . . . . . . . . . . . . . . 1 1 Kicked . | . . . . . . . . . . . . . . . . . . Crushed . | . . . . . . . . . . . . . . . . . . Highest Temperature 366 | 60 7 20 . 236 42 208 229 258 . 366 . . 16 233 . 256 202 Average Temperature 49 | 24 1 12 . 72 11 57 100 84 . 78 . . 2 31 . 114 75 Received Heat Transfer 2568 | . 90 72 . 220 270 153 73 84 . 1121 54 . 42 147 . 75 167 Effects 1 | . . . . . . . . . . 1 . . . . . . . Energy Bleed 1 | . . . . . . . . . . 1 . . . . . . . Siege Activations . | . . . . . . . . . . . . . . . . . . Robots Corrupted . | . . . . . . . . . . . . . . . . . . Combat Hostiles . | . . . . . . . . . . . . . . . . . . Parts Fried 2 | . . . . . . . . . . 1 . . . . . 1 . Impact Corruptions . | . . . . . . . . . . . . . . . . . . Robots Melted . | . . . . . . . . . . . . . . . . . . Combat Hostiles . | . . . . . . . . . . . . . . . . . . Parts Melted 3 | . . . . . . 1 . . . 2 . . . . . . . Heat Transferred 2463 | 136 . . . . 437 259 . 111 . 1200 . . . 320 . . . Parts Sabotaged . | . . . . . . . . . . . . . . . . . . Parts Stolen . | . . . . . . . . . . . . . . . . . . Parts Stripped . | . . . . . . . . . . . . . . . . . . Power Chain Reactions 2 | . . . . . . . . . . 2 . . . . . . . Alert | -11 -10 -10 -10 -9 -8 -8 -8 -6 -6 -6 -5 -4 -4 -4 -4 -3 -3 ------- Run | Yrd Mat Min Exi Min Mat Sto Rec Fac Was Fac Fac Fac Upp Upp Zhi Pro Res Peak Influence 2487 | 10 400 257 . 101 318 236 127 514 13 2487 1295 532 . . . . 252 Initial 1218 | . 6 136 . . 39 124 54 354 1 9 1218 503 . . . . 108 Average 275 | 2 160 110 . 13 153 119 20 215 7 1145 1222 512 . . . . 124 Maximum Alert Level 5 | . 2 1 . . 1 1 . 2 . 5 4 2 . . . . 1 Low Security (%) 70 | 100 57 80 . 100 68 91 100 68 100 5 . . . . . . 78 Level 1 10 | . 38 19 . . 31 8 . 22 . 2 . . . . . . 21 Level 2 3 | . 3 . . . . . . 9 . 3 . 100 . . . . . Level 3 7 | . . . . . . . . . . 48 1 . . . . . . Level 4 5 | . . . . . . . . . . 21 98 . . . . . . Level 5 . | . . . . . . . . . . . . . . . . . . High Security 2 | . . . . . . . . . . 18 . . . . . . . Max Security . | . . . . . . . . . . . . . . . . . . Squads Dispatched 58 | . 2 . . . 6 2 . 5 . 34 1 2 . . . . 6 Investigation 11 | . 1 . . . 2 1 . 1 . 5 . . . . . . 1 Extermination 9 | . . . . . . . . 1 . 3 . 1 . . . . 4 Reinforcement 7 | . 1 . . . 4 . . . . 2 . . . . . . . Assault 23 | . . . . . . 1 . . . 20 1 1 . . . . . Garrison 8 | . . . . . . . . 3 . 4 . . . . . . 1 Intercept . | . . . . . . . . . . . . . . . . . . Searches Triggered 1 | . . . . . . . . 1 . . . . . . . . . Construction Impeded 1 | . . . . . . . . . . 1 . . . . . . . Haulers Reinforced . | . . . . . . . . . . . . . . . . . . Active Scanning Responses . | . . . . . . . . . . . . . . . . . . Cargo Convoy Interrupts . | . . . . . . . . . . . . . . . . . . Stealth | -11 -10 -10 -10 -9 -8 -8 -8 -6 -6 -6 -5 -4 -4 -4 -4 -3 -3 --------- Run | Yrd Mat Min Exi Min Mat Sto Rec Fac Was Fac Fac Fac Upp Upp Zhi Pro Res Distress Signals 17 | . 2 . . . 5 4 1 1 . 2 . . . . . . 2 Communications Jammed 76 | . . . . . . . . . . . . . . . . . 76 Distress Signals 76 | . . . . . . . . . . . . . . . . . 76 Times Spotted 364 | . 26 9 . 12 33 26 3 10 1 131 8 3 13 8 . 26 55 Peak Tracking Total 30 | . 6 3 . 4 6 6 3 4 1 30 4 3 5 5 . 5 13 Tactical Retreats 47 | . 4 1 . 1 2 5 . 4 . 9 3 . 2 . . 10 6 Traps | -11 -10 -10 -10 -9 -8 -8 -8 -6 -6 -6 -5 -4 -4 -4 -4 -3 -3 ------- Run | Yrd Mat Min Exi Min Mat Sto Rec Fac Was Fac Fac Fac Upp Upp Zhi Pro Res Traps Triggered 11 | . 2 . . . 1 1 . 1 . 2 2 . . . . . 2 Indirectly . | . . . . . . . . . . . . . . . . . . Trap Hack Attempts . | . . . . . . . . . . . . . . . . . . Triggered . | . . . . . . . . . . . . . . . . . . Disarmed . | . . . . . . . . . . . . . . . . . . Reprogrammed . | . . . . . . . . . . . . . . . . . . Reused 5 | . . . . . 1 . . . . . . . . . . 4 . Traps Extracted 1 | . . . . . . . . . . . . . . . . 1 . Installed 9 | . . . . . 3 . . . . . . . . . . 6 . Triggered 5 | . . . . . 1 . . . . . . . . . . 4 . Most Traps Carried 6 | . . . . 4 4 . . . . . . . . . . 6 1 Objects Rigged 10 | . . . . . 3 . 7 . . . . . . . . . . Exploded 10 | . . . . . 3 . 7 . . . . . . . . . . Machines | -11 -10 -10 -10 -9 -8 -8 -8 -6 -6 -6 -5 -4 -4 -4 -4 -3 -3 ---------- Run | Yrd Mat Min Exi Min Mat Sto Rec Fac Was Fac Fac Fac Upp Upp Zhi Pro Res Machines Disabled 23 | . . . . . 6 1 . . . 12 . . . 4 . . . Max in Single Turn 5 | . . . . . 4 1 . . . 5 . . . 3 . . . Garrison Access 2 | . . . . . 1 1 . . . . . . . . . . . Machines Repaired . | . . . . . . . . . . . . . . . . . . Machines Dismantled . | . . . . . . . . . . . . . . . . . . Machines Sabotaged . | . . . . . . . . . . . . . . . . . . Overloaded Fab Kills . | . . . . . . . . . . . . . . . . . . Hacking | -11 -10 -10 -10 -9 -8 -8 -8 -6 -6 -6 -5 -4 -4 -4 -4 -3 -3 --------- Run | Yrd Mat Min Exi Min Mat Sto Rec Fac Was Fac Fac Fac Upp Upp Zhi Pro Res Machines Accessed 77 | . 8 1 1 1 8 8 11 2 . 11 6 4 1 . 9 . 6 Terminals 48 | . 7 . . 1 7 8 5 1 . 7 6 2 . . . . 4 Fabricators 3 | . . . . . . . . . . 2 . . . . . . 1 Repair Stations 1 | . . . . . . . . . . . . 1 . . . . . Recycling Units 7 | . 1 . . . . . 5 1 . . . . . . . . . Scanalyzers 2 | . . . . . . . . . . 1 . . . . . . 1 Garrison Access 3 | . . . . . 1 . . . . 1 . 1 . . . . . Total Hacks 236 | . 25 1 1 2 27 22 41 8 . 31 10 9 1 . 48 . 10 Successful 151 | . 13 1 1 2 14 9 23 5 . 17 5 5 1 . 48 . 7 Failed 85 | . 12 . . . 13 13 18 3 . 14 5 4 . . . . 3 Catastrophic 12 | . . . . . 2 2 1 1 . 2 2 2 . . . . . Database Lockouts . | . . . . . . . . . . . . . . . . . . Manual 96 | . 21 . 1 . 23 14 18 7 . 6 2 1 . . . . 3 Terminals 148 | . 24 . . 2 26 22 29 4 . 20 10 4 . . . . 7 Fabricators 5 | . . . . . . . . . . 3 . . . . . . 2 Repair Stations 2 | . . . . . . . . . . . . 2 . . . . . Recycling Units 15 | . 1 . . . . . 10 4 . . . . . . . . . Scanalyzers 6 | . . . . . . . . . . 5 . . . . . . 1 Garrison Access 7 | . . . . . 1 . . . . 3 . 3 . . . . . Terminal Hacks 96 | . 8 1 1 2 6 4 11 . . 7 4 2 1 . 48 . 1 Record 37 | . . . . 1 . . . . . . . . . . 36 . . Part Schematic 5 | . . . . . . . 1 . . . . . . . 4 . . Robot Schematic 1 | . . . . . . . 1 . . . . . . . . . . Robot Analysis 11 | . 4 . . . 1 . 2 . . . . . . . 4 . . Prototype ID Bank 5 | . 1 . . . . . . . . . . . . . 4 . . Open Door 3 | . . 1 . . . 1 . . . . . . 1 . . . . Open DSF 1 | . . . . . . . . . . . 1 . . . . . . Branch Access Points 2 | . . . . . 1 . . . . . . 1 . . . . . Terminal Index 5 | . 1 . . . 1 1 1 . . 1 . . . . . . . Alert Level 5 | . . . . . 1 . 1 . . 2 1 . . . . . . Unreport Threat 3 | . . . . . . . . . . 2 1 . . . . . . Locate Traps 2 | . . . . . . . . . . . . 1 . . . . 1 Dispatch Records 1 | . . . . 1 . . . . . . . . . . . . . Transport Status 1 | . . . . . . . 1 . . . . . . . . . . Recall Reinforcements 1 | . . . . . 1 . . . . . . . . . . . . Registered Components 1 | . 1 . . . . . . . . . . . . . . . . Zone Layout 9 | . 1 . . . 1 2 2 . . 2 1 . . . . . . Derelict Proto ID Bank 1 | . . . 1 . . . . . . . . . . . . . . Release Object 2 | . . . . . . . 2 . . . . . . . . . . Fabricator Hacks 5 | . . . . . . . . . . 3 . . . . . . 2 Load Schematic 2 | . . . . . . . . . . 1 . . . . . . 1 Build 3 | . . . . . . . . . . 2 . . . . . . 1 Repair Station Hacks 2 | . . . . . . . . . . . . 2 . . . . . Scan Component 1 | . . . . . . . . . . . . 1 . . . . . Repair 1 | . . . . . . . . . . . . 1 . . . . . Recycling Unit Hacks 5 | . . . . . . . 4 1 . . . . . . . . . Report Inventory 4 | . . . . . . . 3 1 . . . . . . . . . Retrieve Components 1 | . . . . . . . 1 . . . . . . . . . . Scanalyzer 6 | . . . . . . . . . . 5 . . . . . . 1 Insert Component 3 | . . . . . . . . . . 2 . . . . . . 1 Analyze 3 | . . . . . . . . . . 3 . . . . . . . Garrison Access Hacks 1 | . . . . . 1 . . . . . . . . . . . . Seal Access 1 | . . . . . 1 . . . . . . . . . . . . Unauthorized Hacks 36 | . 5 . . . 7 5 8 4 . 2 1 1 . . . . 3 Terminals 29 | . 4 . . . 7 5 5 1 . 2 1 1 . . . . 3 Botnet 29 | . 4 . . . 7 5 5 1 . 2 1 1 . . . . 3 Fabricators . | . . . . . . . . . . . . . . . . . . Repair Stations . | . . . . . . . . . . . . . . . . . . Recycling Units 7 | . 1 . . . . . 3 3 . . . . . . . . . Monitor 1 | . . . . . . . . 1 . . . . . . . . . Reject 1 | . . . . . . . . 1 . . . . . . . . . Mask 1 | . . . . . . . . 1 . . . . . . . . . Tunnel 4 | . 1 . . . . . 3 . . . . . . . . . . Scanalyzers . | . . . . . . . . . . . . . . . . . . Garrison Access . | . . . . . . . . . . . . . . . . . . Data Cores Recovered 2 | . 1 . . . . . . . . 1 . . . . . . . Used 1 | . 1 . . . . . . . . . . . . . . . . Hacking Detections 55 | . 6 . . 1 6 7 7 2 . 11 5 4 . . . . 6 Full Trace Events 13 | . . . . . 2 1 4 1 . 4 . . . . . . 1 Feedback Events . | . . . . . . . . . . . . . . . . . . Feedback Blocked . | . . . . . . . . . . . . . . . . . . Robot Schematics Acquired 1 | . . . . . . . 1 . . . . . . . . . . Robots Built . | . . . . . . . . . . . . . . . . . . Authchips . | . . . . . . . . . . . . . . . . . . Time . | . . . . . . . . . . . . . . . . . . Total Robot Build Rating . | . . . . . . . . . . . . . . . . . . Part Schematics Acquired 7 | . . . . . . . 1 . . 2 . . . . 4 . . Parts Built 6 | . . . . . . . . . . 4 . . . . . . 2 Authchips . | . . . . . . . . . . . . . . . . . . Time 270 | . . . . . . . . . . 212 . . . . . . 58 Total Part Build Rating 38 | . . . . . . . . . . 24 . . . . . . 14 Parts Repaired 1 | . . . . . . . . . . . . 1 . . . . . Time 38 | . . . . . . . . . . . . 38 . . . . . Parts Recycled . | . . . . . . . . . . . . . . . . . . Recycled Matter . | . . . . . . . . . . . . . . . . . . Retrieved Matter . | . . . . . . . . . . . . . . . . . . Retrieved Components 3 | . . . . . . . 3 . . . . . . . . . . Parts Scanalyzed 2 | . . . . . . . . . . 2 . . . . . . . Part Schematics Acquired 2 | . . . . . . . . . . 2 . . . . . . . Parts Damaged . | . . . . . . . . . . . . . . . . . . Bothacking | -11 -10 -10 -10 -9 -8 -8 -8 -6 -6 -6 -5 -4 -4 -4 -4 -3 -3 ------------ Run | Yrd Mat Min Exi Min Mat Sto Rec Fac Was Fac Fac Fac Upp Upp Zhi Pro Res Used RIF Installer . | . . . . . . . . . . . . . . . . . . Robots Hacked 2 | . . . . . . . . . . 2 . . . . . . . Non-combat 2 | . . . . . . . . . . 2 . . . . . . . Combat . | . . . . . . . . . . . . . . . . . . Robot Hacks Applied 2 | . . . . . . . . . . 2 . . . . . . . no_distress 2 | . . . . . . . . . . 2 . . . . . . . Relay Couplers Released 6 | . . . . . . 2 . . . 4 . . . . . . . Machine Destruction 2 | . . . . . . 2 . . . . . . . . . . . Programmers 4 | . . . . . . . . . . 4 . . . . . . . Fabnet Peak Effective % . | . . . . . . . . . . . . . . . . . . Robots Rewired 4 | . . . . . . . 4 . . . . . . . . . . Allies Hacked . | . . . . . . . . . . . . . . . . . . Hacks Repelled . | . . . . . . . . . . . . . . . . . . Allies | -11 -10 -10 -10 -9 -8 -8 -8 -6 -6 -6 -5 -4 -4 -4 -4 -3 -3 -------- Run | Yrd Mat Min Exi Min Mat Sto Rec Fac Was Fac Fac Fac Upp Upp Zhi Pro Res Total Allies 27 | . . 3 . . . . 4 . 20 . . . . . . . . Largest Group 20 | . . 3 1 1 . . 4 . 20 18 . . . . . . . Highest-Rated Group 764 | . . 40 8 8 . . 41 . 764 699 . . . . . . . Highest-Rated Ally 50 | . . 16 8 8 . . 16 . 50 50 . . . . . . . Total Orders 40 | . . 2 1 6 . . 6 3 . . 1 . . 6 2 13 . STAY 2 | . . . . . . . 2 . . . . . . . . . . ROAM 1 | . . . . . . . . . . . . . . 1 . . . FOLLOW 4 | . . . . 1 . . 2 . . . . . . . . 1 . EXPLORE 10 | . . . . 1 . . 1 1 . . . . . 2 1 4 . RETURN 23 | . . 2 1 4 . . 1 2 . . 1 . . 3 1 8 . Ally Attacks 222 | . . 12 . . . . 8 . 14 188 . . . . . . . Total Damage 6688 | . . 140 . . . . 92 . 1207 5249 . . . . . . . Kills 41 | . . 1 . . . . 3 . 3 34 . . . . . . . Allies Corrupted 4 | . . . . 2 . . . . . 2 . . . . . . . Allies Melted . | . . . . . . . . . . . . . . . . . . Intel | -11 -10 -10 -10 -9 -8 -8 -8 -6 -6 -6 -5 -4 -4 -4 -4 -3 -3 ------- Run | Yrd Mat Min Exi Min Mat Sto Rec Fac Was Fac Fac Fac Upp Upp Zhi Pro Res Robot Analysis Total 11 | . 4 . . . 1 . 2 . . . . . . . 4 . . Derelict Logs Recovered 6 | . . 2 . 1 . . . . . . . . 1 2 . . . Drone Launches 36 | . . 3 1 5 . . 1 4 . . 3 . . 6 1 12 . Drone Recoveries 35 | . . 3 1 4 . . 1 4 . . 3 . . 6 1 12 . Exploration | -11 -10 -10 -10 -9 -8 -8 -8 -6 -6 -6 -5 -4 -4 -4 -4 -3 -3 ------------- Run | Yrd Mat Min Exi Min Mat Sto Rec Fac Was Fac Fac Fac Upp Upp Zhi Pro Res Turns Passed 25441 | 144 1162 1508 577 1428 1143 1363 4779 1261 392 2612 405 390 1316 2651 235 2731 1344 Spaces Moved 18925 | 78 646 683 270 521 564 697 3393 712 385 1937 502 427 2358 2313 197 2331 911 Core 385 | 4 . . . . 19 . 42 . . 10 7 . . . . . 303 Treads 3710 | 73 646 469 270 521 45 81 1410 18 . 177 . . . . . . . Legs 688 | 1 . . . . . . . . . 687 . . . . . . . Wheels 4465 | . . 214 . . 500 616 1399 694 385 625 . . . . . . 32 Hover 3346 | . . . . . . . . . . . 153 234 16 9 90 2331 513 Flight 6331 | . . . . . . . 542 . . 438 342 193 2342 2304 107 . 63 Fastest Speed 24 | 50 160 115 160 160 105 95 47 91 91 26 26 24 24 30 58 35 40 Average Speed 96 | 153 160 204 208 205 147 124 126 121 91 94 62 76 28 62 96 58 86 Slowest Speed 800 | 160 160 240 240 320 800 240 410 240 91 350 350 180 155 340 575 129 300 Overloaded Moves . | . . . . . . . . . . . . . . . . . . Propulsion Burnouts . | . . . . . . . . . . . . . . . . . . Robots Hopped 1 | . . . . . . . . . . . . . . . . . 1 Cave-ins Triggered . | . . . . . . . . . . . . . . . . . . Teleports 1 | . . . . . . . . . . . . . . . . . 1 Exploration Rate (%) 61 | 5 96 89 61 91 44 69 99 7 95 47 13 13 99 99 62 96 30 Regions Visited 17 Branch Regions 9 Pre-discovered Areas 8 | . 1 . . . . . 3 . . . . . . 1 3 . . Known Exits Taken 6 | . . 1 . 1 1 . . . . 1 1 1 . . . . . Unknown Exits Taken 9 | 1 1 . 1 . . 1 1 . . . . . 1 1 1 1 . Scrap Searched 14 | . . 1 . 1 . . . . . . . . 3 4 . 5 . Spaces Dug 378 | . . 17 . . 10 16 6 9 . 40 7 4 144 67 . 47 11 Terrain Destroyed 734 | . . 47 . 22 60 17 7 11 . 189 7 4 223 85 . 51 11 Melee 315 | . . . . . 10 16 6 8 . 22 7 4 144 60 . 28 10 Projectile 49 | . . . . . 1 1 1 3 . 6 . . . 13 . 23 1 AOE 370 | . . 47 . 22 49 . . . . 161 . . 79 12 . . . Terrain Rammed . | . . . . . . . . . . . . . . . . . . Walls Destroyed . | . . . . . . . . . . . . . . . . . . Machines Disabled . | . . . . . . . . . . . . . . . . . . Actions | -11 -10 -10 -10 -9 -8 -8 -8 -6 -6 -6 -5 -4 -4 -4 -4 -3 -3 --------- Run | Yrd Mat Min Exi Min Mat Sto Rec Fac Was Fac Fac Fac Upp Upp Zhi Pro Res Total 24590 | 91 732 765 283 814 799 1122 3797 1060 429 2527 580 478 2665 3327 226 3513 1382 Wait 4285 | 1 36 57 7 247 120 349 248 282 24 388 59 27 116 891 7 1058 368 Move 18907 | 77 645 682 269 520 563 696 3392 712 384 1936 501 426 2357 2312 196 2330 909 Hop 1 | . . . . . . . . . . . . . . . . . 1 Pick Up 91 | . 15 1 4 . 20 2 10 6 6 7 2 2 5 1 2 2 6 Fast Attach 89 | 8 3 . . 1 6 5 1 3 3 10 4 9 5 4 1 6 20 Attach 57 | . . 1 . 1 6 2 10 4 2 11 1 . 5 . 3 3 8 Detach 51 | 1 1 . . . . 1 12 3 2 4 3 2 3 1 2 3 13 Swap 143 | . 1 7 3 14 15 9 13 9 1 39 . 1 1 9 7 10 4 Drop 112 | . 8 1 . . 16 6 16 8 7 16 3 6 6 4 2 1 12 Fire 254 | 4 23 14 . 23 34 13 3 23 . 57 . . 14 20 . 24 2 Melee 549 | . . 2 . 8 13 31 63 10 . 59 7 5 153 85 6 69 38 Ram 2 | . . . . . . . . . . . . . . . . 1 1 Kick . | . . . . . . . . . . . . . . . . . . Crush . | . . . . . . . . . . . . . . . . . . Escape Stasis 8 | . . . . . . 8 . . . . . . . . . . . Rewire 22 | . . . . . . . 22 . . . . . . . . . . Trap 19 | . . . . . 6 . 7 . . . . . . . . 6 . Miscellaneous . | . . . . . . . . . . . . . . . . . . Route ------- -11/Scrapyard -10/Materials (discovered 5 exits: *Mat x3 / *Min x2) -10/Mines (discovered 3 exits: *Mat x2 / *Exi) -10/Exiles -9/Mines (discovered 2 exits: *Mat x2) -8/Materials (discovered 3 exits: *Fac x2 / *Sto) -8/Storage -8/Recycling -6/Factory (discovered 2 exits: *Fac x2) -6/Waste -6/Factory (discovered 2 exits: *Fac x2) -5/Factory -4/Factory (discovered 4 exits: *Upp x2 / Ext x2) -4/Upper Caves -4/Upper Caves (discovered 2 exits: *Res / *Zhi) -4/Zhirov -3/Proximity Caves -3/Research (discovered 1 exit: [*Tes]) History --------- Turn | Location | Event 6 | -11/Scrapyard | Discovered new exit (range 15) 145 | -11/Scrapyard | Entered Materials 277 | -10/Materials | Discovered new exit (range 8) 310 | -10/Materials | Build established: Mutant 850 | -10/Materials | Discovered new exit (range 11) 852 | -10/Materials | Destroyed 10 combat bots 853 | -10/Materials | Discovered new exit (range 16) 877 | -10/Materials | Discovered new exit (range 14) 1231 | -10/Materials | Discovered new exit (range 11) 1307 | -10/Materials | Entered Mines 1351 | -10/Mines | Found the Drone Emporium 1357 | -10/Mines | Found Prototype Device 1357 | -10/Mines | Identified Sensor Drone Bay 1430 | -10/Mines | Learned Materials security intel 1694 | -10/Mines | Discovered new exit (range 5) 1770 | -10/Mines | Assisted by bots powering up and referring to "LRC-V3" 1990 | -10/Mines | Discovered new exit (range 14) 2042 | -10/Mines | Identified exit to Materials 2228 | -10/Mines | Learned location of 2 exits from Materials 2791 | -10/Mines | Deemed a non-threat by the Exiles lab entrance 2791 | -10/Mines | Discovered new exit (range 5) 2813 | -10/Mines | Identified exit to Exiles 2815 | -10/Mines | Entered Exiles 2815 | -10/Exiles | Accompanied by 1 ally 2890 | -10/Exiles | Met 8R-AWN 2914 | -10/Exiles | Met EX-HEX 2962 | -10/Exiles | Met EX-BIN 3082 | -10/Exiles | Aligned with FarCom system 3084 | -10/Exiles | Given EX-Vault access code 3149 | -10/Exiles | Opened EX-Vault 3159 | -10/Exiles | Found PSU Rigger 3210 | -10/Exiles | Warned to stay clear of 0b10 Research branches 3247 | -10/Exiles | Exiles lab attacked by MAIN.C 3361 | -10/Exiles | Discovered new exit (range 12) 3392 | -10/Exiles | Left Exiles lab with PSU Rigger 3392 | -10/Exiles | Entered Mines 3392 | -9/Mines | Accompanied by 1 ally 3453 | -9/Mines | Learned Materials stockpile data 3517 | -9/Mines | Discovered new exit (range 55) 3863 | -9/Mines | Excavation squad dispatched 3863 | -9/Mines | A large section of the Mines collapsed 3894 | -9/Mines | Lost 3 allies 4205 | -9/Mines | Identified exit to Materials 4623 | -9/Mines | Found a hidden stash of uninstalled traps 4750 | -9/Mines | Discovered exit to Materials (range 10) 4820 | -9/Mines | Entered Materials 4820 | -8/Materials | Evolved 4 slots: Propulsion x2, Utility x2 4821 | -8/Materials | Identified exit to Factory 4821 | -8/Materials | Identified exit to Storage 5352 | -8/Materials | Discovered exit to Factory (range 15) 5963 | -8/Materials | Entered Storage 6219 | -8/Storage | Build established: Assassin 6834 | -8/Storage | Build established: Mutant 7150 | -8/Storage | Met 01-MTF 7259 | -8/Storage | Core integrity fell below 50% 7312 | -8/Storage | Discovered new exit (range 5) 7326 | -8/Storage | Entered Recycling 7326 | -8/Recycling | Accompanied by 1 ally (01-MTF) 7363 | -8/Recycling | Build established: Scavenger-Mutant 7578 | -8/Recycling | Discovered new exit (range 16) 8576 | -8/Recycling | Scanned before Scraplab entrance 8632 | -8/Recycling | Entered Scraplab 11048 | -8/Recycling | Angered Scraplab inhabitants 11051 | -8/Recycling | Found Prototype Device 11085 | -8/Recycling | Lost 3 allies 11179 | -8/Recycling | Identified Scrap Engine 12105 | -8/Recycling | Entered Factory 12105 | -6/Factory | Evolved 4 slots: Power x1, Propulsion x1, Utility x1, Weapon x1 12400 | -6/Factory | Build established: Mutant 12455 | -6/Factory | Search patrols dispatched 12460 | -6/Factory | Discovered new exit (range 8) 12463 | -6/Factory | Discovered new exit (range 15) 12491 | -6/Factory | Identified exit to Factory 12868 | -6/Factory | Garrison activated, responded to threat 13366 | -6/Factory | Sucked down chute 13366 | -6/Factory | Entered Waste 13367 | -6/Waste | Joined by Warlord forces that had cleared the area 13527 | -6/Waste | Discovered new exit (range 14) 13536 | -6/Waste | A Compactor rumbled back to life 13536 | -6/Waste | Spotted C-40 Crusher 13541 | -6/Waste | Allies destroyed C-40 Crusher 13758 | -6/Waste | Entered Factory 13758 | -6/Factory | Accompanied by 18 allies 13764 | -6/Factory | Build established: Scavenger-Mutant 13896 | -6/Factory | Garrison activated, responded to threat 13996 | -6/Factory | Fabricated Force Lance (x2) 14045 | -6/Factory | Discovered exit to Factory (range 16) 14342 | -6/Factory | Found Prototype Launcher 14342 | -6/Factory | Identified Scatter Rocket Array 14576 | -6/Factory | Lost 7 allies 14929 | -6/Factory | Build established: Construct 15158 | -6/Factory | First assault squad dispatched 15200 | -6/Factory | Fabricated Energy Well (x2) 15881 | -6/Factory | Garrison activated, responded to threat 15893 | -6/Factory | High security lockdown imminent 15950 | -6/Factory | Destroyed 20 combat bots 15973 | -6/Factory | High security lockdown engaged 15980 | -6/Factory | Lost 13 parts (3p6n2u2w) 16066 | -6/Factory | Core integrity fell below 50% 16120 | -6/Factory | Discovered exit to Factory (range 11) 16191 | -6/Factory | Lost 10 parts (3p4n1u2w) 16339 | -6/Factory | Core integrity fell below 20% 16370 | -6/Factory | Entered another Factory area 16370 | -5/Factory | Evolved 2 slots: Propulsion x1, Utility x1 16452 | -5/Factory | Identified exit to DSF 16670 | -5/Factory | First assault squad dispatched 16677 | -5/Factory | Discovered new exit (range 22) 16773 | -5/Factory | Identified exit to Factory 16775 | -5/Factory | Entered another Factory area 16775 | -4/Factory | Evolved 2 slots: Utility x2 16815 | -4/Factory | Build established: Mutant 17053 | -4/Factory | Discovered new exit (range 15) 17073 | -4/Factory | First assault squad dispatched 17141 | -4/Factory | Identified exit to Upper Caves 17141 | -4/Factory | Identified exit to Extension 17163 | -4/Factory | Repaired Imp. Propulsion Shielding 17165 | -4/Factory | Entered Upper Caves 17387 | -4/Upper Caves | Build established: Sprinter 17508 | -4/Upper Caves | Lost 3 parts (1p1n1w) 17696 | -4/Upper Caves | Discovered new exit (range 8) 17934 | -4/Upper Caves | Learned Research terminal intel 18108 | -4/Upper Caves | Build established: Derelict-Sprinter 18481 | -4/Upper Caves | Entered another Upper Caves area 18484 | -4/Upper Caves | Encountered a Warlord checkpoint 18542 | -4/Upper Caves | Discovered new exit (range 16) 18848 | -4/Upper Caves | Discovered new exit (range 16) 19159 | -4/Upper Caves | Build established: Derelict-Gladiator 19445 | -4/Upper Caves | Learned location of Armory (-3) 19636 | -4/Upper Caves | Attracted the attention of an 0b10 checkpoint 20290 | -4/Upper Caves | Attracted the attention of an 0b10 base 20341 | -4/Upper Caves | Lost 3 allies 20647 | -4/Upper Caves | Build established: Derelict-Mutant 21132 | -4/Upper Caves | Entered Zhirov 21134 | -4/Zhirov | Discovered new exit (range 4) 21159 | -4/Zhirov | Met Zhirov 21185 | -4/Zhirov | Learned location of Quarantine (-2) 21185 | -4/Zhirov | Learned location of Testing (-3) 21185 | -4/Zhirov | Learned location of Command (-1) 21211 | -4/Zhirov | Zhirov requested help retrieving the SGEMP Prototype 21229 | -4/Zhirov | Found Alien Artifact 21229 | -4/Zhirov | Identified Integrated Dissipator 21229 | -4/Zhirov | Installed Integrated Dissipator, increased core heat dissipation (+20) 21253 | -4/Zhirov | Found Alien Artifact 21367 | -4/Zhirov | Entered Proximity Caves 21573 | -3/Proximity Caves | Build established: Hacker-Mutant 21914 | -3/Proximity Caves | Discovered new exit (range 14) 21985 | -3/Proximity Caves | Attracted the attention of an 0b10 checkpoint 22465 | -3/Proximity Caves | Spotted B-86 Titan 22976 | -3/Proximity Caves | Build established: Mutant 24098 | -3/Proximity Caves | Entered Research 24098 | -3/Research | Evolved 2 slots: Utility x2 24099 | -3/Research | Loaded intel: 19 terminal locations 24524 | -3/Research | Build established: Assassin 24592 | -3/Research | Identified Transdimensional Reconstructor 24701 | -3/Research | Lost 3 parts (2u1w) 24791 | -3/Research | Spotted B-86 Titan 24802 | -3/Research | Lost 8 parts (3p4n1u) 24853 | -3/Research | System corruption reached 10% 24882 | -3/Research | Warped through subspace 24912 | -3/Research | Lost 13 parts (1p7n2u3w) 25066 | -3/Research | Build established: Mutant 25265 | -3/Research | Fabricated Force Lance (x2) 25343 | -3/Research | Found Gamma Bomb Array 25397 | -3/Research | Garrison activated, responded to threat 25404 | -3/Research | Core integrity fell below 50% 25435 | -3/Research | Discovered new exit (range 8) 25437 | -3/Research | Core integrity fell below 20% 25442 | -3/Research | Destroyed by H-71 Marshal with Heavy Mass Driver Last Messages --------------- 25407_ Field Propulsion Array destroyed. 25408_ System corrupted: Energy discharge (-23). 25408_ P-80 Master resets P-80 Master, system corruption cleaned. 25409_ P-80 Master resets U-05 Engineer, system corruption cleaned. 25410_ Imp. Transmission Jammer destroyed. 25412_ U-05 Engineer destroyed. 25414_ R-10 Processor collects Corrupted Terrain Scanner. 25421_ K-01 Serf cleans the Subatomic Condenser. 25423_ K-01 Serf destroyed. 25424_ K-01 Serf collects debris. 25425_ U-05 Engineer destroyed. 25427_ System corrupted: Energy discharge (-31). 25427_ K-01 Serf collects debris. 25429_ Graphene Brace destroyed. 25435_ EXIT=FOUND 25436_ Knocked back. 25437_ K-01 Serf cleans the DSF Access. 25438_ Slug penetrates Wall. 25440_ Penetrated by Slug. 25440_ Imp. Melee Analysis Suite destroyed. Map ----- +----------------------------------------------------+ | ?????????????????????????????????????????????????? | | ?????????????????????????????????????????????????? | | ?????????????????????????????????????????????????? | | ?????????????????????????????????????????????????? | | ?????????????????????????????????????????????????? | | ?????????????????????????????????????????????????? | | ?????????????????????????????????????????????????? | | ?????????????????????????????????????????????????? | | ?????????????????????????????????????????????????? | | ???????????""?""?????????????????????""??????????? | | ???????????""T""?????????????????????"""?????????? | | ????????????"""???????????????????????T"?????????? | | ?????????????????????????????????????"""?????????? | | ?????????????????????????????????????""??????????? | | ?????????????????????????????????????????????????? | | ######???????????????????????????????????????????? | | ?????????????????????????????????Y?????????? | | ???????###########????????????????????????? | | """"#????# ?????????????????????????? | | """"#????# ??????????????????????????? | | """"#????# ???????????????????????????? | | """"#????# ??????????????????????????? | | ?????# ###;##########????????????????? | | ?? ??####?# # % % !#????????????????? | | ####+#####T ### # ! #????????????????? | | p p s/ @H #????????????????? | | ss s ; #????????????????? | | s p s% # #????????????????? | | p ##############????????????????? | | ####+### p ########?????????????????????????????? | | ???????# #????????????????????????????????????? | | ???????# #????????????????????????????????????? | | ??""???# #????????????????????????????????????? | | ??"""??# #????????????????????????????????????? | | ???T"??# #????????????????????????????????????? | | ??"""??# #????????????????????????????????????? | | ??""???# #????????????????????????????????????? | | ???????# #????????????????????????????????????? | | ???????# #????????????????????????????????????? | | ???????# /????????????????????????????????????? | | ???????? #????????????????????????????????????? | | ???????? ??????????????????????????????????????? | | ?????????????????????????????????????????????????? | | ?????????????????????????????????????????????????? | | ?????????????????????????????????????????????????? | | ?????????????????????????????????????????????????? | | ?????????????????????????????????????????????????? | | ?????????????????????????????????????????????????? | | ?????????????????????????????????????????????????? | | ?????????????????????????????????????????????????? | +----------------------------------------------------+ Best States ------------- Heat Dissipation 66 Coolant Potential 100 Energy Generation 38 Energy Capacity 961 Matter Stores 550 Matter Capacity 550 Sight Range 16 Terrain Scan Range 20 Terrain Scan Density 10 Jamming Range 14 Power Amplification 30 Additional Mass Support 6 Armor Coverage 375 Power Shielding 90 Propulsion Shielding 66 Evasion (%) 65 Targeting Accuracy 5 Melee Accuracy 12 Launcher Accuracy 30 Recoil Reduction 4 Particle Charging 15 Offensive Hacking 25 Defensive Hacking 10 Trap Extractor Capacity 8 Item Schematics ----------------- Adv. Weight Redist. System | -8/Recycling | Hacked Force Lance | -6/Factory | Scanalyzed Sml. Storage Unit | -6/Factory | Scanalyzed Assault Drone Bay | -4/Zhirov | Free Exp. Heat Sink | -4/Zhirov | Free Exp. Optical Array | -4/Zhirov | Free Imp. Arc Thrower | -4/Zhirov | Free Robot Schematics ------------------ A-02 Transporter | -8/Recycling | Hacked Fabricated ------------ Force Lance | x2 | -6/Factory Energy Well | x2 | -6/Factory | Preloaded Force Lance | x2 | -3/Research Alien Tech Used ----------------- Integrated Dissipator Transdimensional Reconstructor Achievements -------------- Can't Catch Me Killing Spree Prolific Hacker Challenges ------------ None Game ------ Seed ExpertTransportDisintegrator Manual? 0 Play Time 06:14:38 Cumulative 81.7 hours Start 2024.08.19 @ 10:16:57 End 2024.08.20 @ 00:14:34 Sessions 5 Manual Loads 0 Difficulty Rogue Special Mode None Game No. 79 Rogue 79 Adventurer 0 Explorer 0 Win Type - Total 0 Types 0/0/0/0/0/0/0/0/0 Lore% 47 Gallery% 51 Achievement% 42 Wizard Run 0 Options --------- Layout 2 ASCII 0 Keyboard 1 Movement Vi Keybinds 0 Fullscreen 1 Font 32/SmallcapsGlow Map View 77x44 Zoom Use 0% Tactical HUD 1 Map Filters NONE Filters NONE Steam 1 RUN: 813184eb-a5ab-4b75-ac0a-274b645f40a8